[Event "VI Sunway Sitges Open 2019"]
[Site "Sitges"]
[Date "2019.12.17"]
[Round "5.3"]
[White "Donchenko, Alexander"]
[Black "Li, Di"]
[Result "1/2-1/2"]
[ECO "D87"]
[WhiteElo "2644"]
[BlackElo "2543"]
[Annotator "ChessBase"]
[PlyCount "61"]
[EventDate "2019.12.13"]
[EventType "swiss"]
[EventCountry "ESP"]
[SourceTitle "playchess.com"]
[Source "ChessBase"]
[SourceQuality "1"]
[TimeControl "40/5400+30:1800+30"]

1. d4 {[%emt 0:00:00]} Nf6 {[%emt 0:00:00]} 2. c4 {[%emt 0:00:00]} g6 {[%emt 0:00:07]} 3. Nc3 {[%emt 0:00:31]} d5 {[%emt 0:00:10]} 4. cxd5 {[%emt 0:00:31]} Nxd5 {[%emt 0:00:08]} 5. e4 {[%emt 0:00:06]} Nxc3 {[%emt 0:00:12]} 6. bxc3 {[%emt 0:00:05]} Bg7 {[%emt 0:00:08]} 7. Bc4 {[%emt 0:00:58]} c5 {[%emt 0:00:30]} 8. Ne2 {[%emt 0:00:12]} Nc6 {[%emt 0:00:06]} 9. Be3 {[%emt 0:00:16]} O-O {[%emt 0:00:17]} 10. O-O {[%emt 0:00:11]} Bg4 {[%emt 0:00:48]} 11. f3 {[%emt 0:01:16]} Bd7 {[%emt 0:07:54]} 12. Rc1 {[%emt 0:08:11]} Rc8 {[%emt 0:07:11]} 13. Qd2 {[%emt 0:17:20]} Qa5 {[%emt 0:06:57]} 14. Qb2 {[%emt 0:25:05]} b5 {[%emt 0:02:53]} 15. Qxb5 {[%emt 0:02:38]} Qxb5 {[%emt 0:11:22]} 16. Bxb5 {[%emt 0:00:00]} Nxd4 17. Nxd4 {[%emt 0:01:52]} Bxd4 {[%emt 0:02:10]} 18. cxd4 {[%emt 0:00:00]} Bxb5 {[%emt 0:00:09]} 19. Rfd1 {[%emt 0:00:00]} cxd4 {[%emt 0:00:09]} 20. Bxd4 {[%emt 0:01:29]} a6 {[%emt 0:01:59]} 21. Kf2 {[%emt 0:01:13]} f6 {[%emt 0:01:53]} 22. Ke3 {[%emt 0:00:47]} h5 {[%emt 0:01:10]} 23. e5 {[%emt 0:00:00]} Kf7 {[%emt 0:00:40]} 24. h4 {[%emt 0:00:00]} Rfd8 {[%emt 0:01:14]} 25. Rxc8 {[%emt 0:00:00]} Rxc8 {[%emt 0:00:06]} 26. exf6 {[%emt 0:00:00]} exf6 {[%emt 0:00:07]} 27. Rd2 {[%emt 0:00:00]} Re8+ {[%emt 0:00:15]} 28. Kf2 {[%emt 0:00:00]} Rd8 {[%emt 0:00:11]} 29. Bc3 {[%emt 0:00:00]} Rxd2+ {[%emt 0:00:07]} 30. Bxd2 {[%emt 0:00:00]} Bc4 {[%emt 0:00:07]} 31. a3 {[%emt 0:00:00]} 1/2-1/2

[Event "VI Sunway Sitges Open 2019"]
[Site "Sitges"]
[Date "2019.12.17"]
[Round "5.4"]
[White "Erigaisi Arjun"]
[Black "Tabatabaei, M.amin"]
[Result "1/2-1/2"]
[ECO "C47"]
[WhiteElo "2544"]
[BlackElo "2635"]
[Annotator "ChessBase"]
[PlyCount "75"]
[EventDate "2019.12.13"]
[EventType "swiss"]
[EventCountry "ESP"]
[SourceTitle "playchess.com"]
[Source "ChessBase"]
[SourceQuality "1"]
[TimeControl "40/5400+30:1800+30"]

1. e4 {[%emt 0:00:00]} e5 {[%emt 0:02:55]} 2. Nf3 {[%emt 0:00:00]} Nc6 {[%emt 0:00:05]} 3. d4 {[%emt 0:00:00]} exd4 {[%emt 0:00:06]} 4. Nxd4 {[%emt 0:00:00]} Nf6 {[%emt 0:00:04]} 5. Nxc6 {[%emt 0:00:18]} bxc6 {[%emt 0:00:05]} 6. Bd3 {[%emt 0:00:06]} d5 {[%emt 0:00:06]} 7. Nc3 {[%emt 0:01:36]} Bb4 {[%emt 0:05:30]} 8. exd5 {[%emt 0:00:25]} O-O {[%emt 0:00:12]} 9. O-O {[%emt 0:00:06]} cxd5 {[%emt 0:00:04]} 10. Bg5 {[%emt 0:00:48]} c6 {[%emt 0:05:08]} 11. Qf3 {[%emt 0:00:45]} Be7 {[%emt 0:08:19]} 12. h3 {[%emt 0:06:53]} h6 {[%emt 0:01:16]} 13. Bf4 {[%emt 0:02:19]} Bd6 {[%emt 0:00:13]} 14. Rfe1 {[%emt 0:03:49]} Rb8 {[%emt 0:00:12]} 15. b3 {[%emt 0:01:44]} Be6 {[%emt 0:01:15]} 16. Ne2 {[%emt 0:03:52]} c5 {[%emt 0:00:16]} 17. Rad1 {[%emt 0:04:45]} Re8 {[%emt 0:02:12]} 18. Bxd6 {[%emt 0:03:28]} Qxd6 {[%emt 0:00:15]} 19. Nf4 {[%emt 0:00:30]} Rbd8 {[%emt 0:10:03]} 20. Re2 {[%emt 0:09:55]} g5 {[%emt 0:09:24]} 21. Nxe6 {[%emt 0:20:39]} Rxe6 {[%emt 0:00:55]} 22. g3 {[%emt 0:12:52]} Rxe2 {[%emt 0:01:38]} 23. Qxe2 {[%emt 0:01:53]} Re8 {[%emt 0:05:30]} 24. Qd2 {[%emt 0:02:12]} Qe6 {[%emt 0:03:18]} 25. h4 {[%emt 0:03:35]} gxh4 {[%emt 0:12:50]} 26. Qxh6 {[%emt 0:01:42]} hxg3 {[%emt 0:00:07]} 27. Kg2 {[%emt 0:02:15]} gxf2 {[%emt 0:06:19]} 28. Rh1 {[%emt 0:02:27]} f1=Q+ {[%emt 0:01:54]} 29. Kxf1 {[%emt 0:00:43]} Qe1+ {[%emt 0:00:06]} 30. Kg2 {[%emt 0:00:06]} Re2+ {[%emt 0:00:04]} 31. Bxe2 {[%emt 0:00:05]} Qxe2+ {[%emt 0:00:05]} 32. Kg1 {[%emt 0:00:19]} Qd1+ {[%emt 0:01:19]} 33. Kg2 {[%emt 0:00:48]} Qxc2+ {[%emt 0:00:12]} 34. Kh3 {[%emt 0:00:08]} Qd3+ {[%emt 0:04:51]} 35. Kg2 {[%emt 0:02:28]} Qe2+ {[%emt 0:01:34]} 36. Kg1 {[%emt 0:00:10]} Qe1+ {[%emt 0:00:16]} 37. Kg2 {[%emt 0:00:11]} Qe2+ {[%emt 0:00:04]} 38. Kg1 {[%emt 0:00:07]} 1/2-1/2

[Event "VI Sunway Sitges Open 2019"]
[Site "Sitges"]
[Date "2019.12.17"]
[Round "5.5"]
[White "Vocaturo, Daniele"]
[Black "Moradiabadi, Elshan"]
[Result "1/2-1/2"]
[ECO "C54"]
[WhiteElo "2627"]
[BlackElo "2539"]
[Annotator "ChessBase"]
[PlyCount "119"]
[EventDate "2019.12.13"]
[EventType "swiss"]
[EventCountry "ESP"]
[SourceTitle "playchess.com"]
[Source "ChessBase"]
[SourceQuality "1"]
[TimeControl "40/5400+30:1800+30"]

1. e4 {[%emt 0:00:00]} e5 {[%emt 0:00:00]} 2. Nf3 {[%emt 0:00:03]} Nc6 {[%emt 0:00:51]} 3. Bc4 {[%emt 0:00:51]} Bc5 {[%emt 0:00:00]} 4. c3 {[%emt 0:00:43]} Nf6 {[%emt 0:00:30]} 5. d4 {[%emt 0:01:04]} exd4 {[%emt 0:00:00]} 6. e5 {[%emt 0:00:29]} d5 7. Bb5 {[%emt 0:00:00]} Ne4 {[%emt 0:00:00]} 8. cxd4 {[%emt 0:00:40]} Bb6 {[%emt 0:00:00]} 9. Nc3 {[%emt 0:00:57]} O-O 10. Be3 {[%emt 0:01:09]} Bg4 {[%emt 0:00:22]} 11. h3 {[%emt 0:02:30]} Bh5 12. Qc2 {[%emt 0:08:06]} Bxf3 {[%emt 0:10:12]} 13. gxf3 {[%emt 0:00:00]} Ng5 {[%emt 0:00:57]} 14. O-O-O {[%emt 0:01:25]} Nxf3 {[%emt 0:02:21]} 15. Bxc6 bxc6 16. Qe2 {[%emt 0:05:30]} Nh4 {[%emt 0:05:26]} 17. Rhg1 {[%emt 0:00:00]} Qd7 18. Bg5 {[%emt 0:07:05]} Ng6 {[%emt 0:22:32]} 19. h4 {[%emt 0:00:32]} f6 20. exf6 {[%emt 0:12:03]} Rae8 {[%emt 0:10:55]} 21. Qd2 {[%emt 0:08:40]} Rf7 {[%emt 0:03:50]} 22. fxg7 {[%emt 0:05:55]} Ne7 {[%emt 0:15:01]} 23. Bxe7 {[%emt 0:01:35]} Rexe7 {[%emt 0:01:09]} 24. h5 {[%emt 0:03:07]} Rxg7 {[%emt 0:00:00]} 25. h6 {[%emt 0:01:40]} Rg6 {[%emt 0:00:00]} 26. Ne2 {[%emt 0:04:28]} Qf5 {[%emt 0:01:52]} 27. Ng3 {[%emt 0:02:41]} Qf6 {[%emt 0:14:40]} 28. Nh5 {[%emt 0:05:32]} Qxd4 {[%emt 0:00:00]} 29. Rxg6+ {[%emt 0:01:45]} hxg6 {[%emt 0:00:00]} 30. Qc2 {[%emt 0:02:34]} Qc5 {[%emt 0:00:00]} 31. Nf6+ {[%emt 0:00:00]} Kf7 {[%emt 0:03:06]} 32. h7 {[%emt 0:03:50]} Qxc2+ {[%emt 0:00:00]} 33. Kxc2 {[%emt 0:00:00]} Kg7 {[%emt 0:00:00]} 34. Rg1 {[%emt 0:00:15]} Kh8 {[%emt 0:00:00]} 35. Rxg6 {[%emt 0:01:07]} Rg7 36. Rxg7 {[%emt 0:02:33]} Kxg7 {[%emt 0:00:00]} 37. f3 {[%emt 0:00:37]} Bd4 {[%emt 0:05:52]} 38. Nd7 {[%emt 0:08:06]} c5 {[%emt 0:02:16]} 39. b3 {[%emt 0:00:00]} c4 {[%emt 0:00:08]} 40. bxc4 {[%emt 0:00:00]} dxc4 41. a4 {[%emt 0:03:15]} Kxh7 {[%emt 0:03:47]} 42. Nf8+ {[%emt 0:01:45]} Kg8 {[%emt 0:00:04]} 43. Ne6 {[%emt 0:00:06]} Bb6 {[%emt 0:00:04]} 44. Kc3 {[%emt 0:00:17]} Kf7 {[%emt 0:00:02]} 45. Nf4 {[%emt 0:00:22]} Ke7 {[%emt 0:00:06]} 46. Nd5+ {[%emt 0:01:22]} Kd6 {[%emt 0:00:16]} 47. Kxc4 {[%emt 0:00:45]} c6 {[%emt 0:00:09]} 48. Nb4 {[%emt 0:01:44]} a5 {[%emt 0:02:31]} 49. Nd3 {[%emt 0:00:26]} Be3 {[%emt 0:00:06]} 50. Nb2 {[%emt 0:01:44]} Bc1 {[%emt 0:00:37]} 51. Nd1 {[%emt 0:02:44]} Bg5 {[%emt 0:01:50]} 52. Nf2 {[%emt 0:00:41]} Be3 {[%emt 0:00:32]} 53. Nd3 {[%emt 0:04:52]} Bb6 {[%emt 0:00:42]} 54. f4 {[%emt 0:01:07]} Ke6 {[%emt 0:01:12]} 55. Ne5 {[%emt 0:00:30]} Bc7 {[%emt 0:02:01]} 56. Nxc6 {[%emt 0:00:19]} Bxf4 {[%emt 0:00:03]} 57. Nxa5 {[%emt 0:00:06]} Bd2 {[%emt 0:00:06]} 58. Kb5 {[%emt 0:00:26]} Bxa5 {[%emt 0:00:51]} 59. Kxa5 {[%emt 0:00:03]} Kd7 {[%emt 0:00:03]} 60. Kb6 {[%emt 0:00:04]} 1/2-1/2

[Event "VI Sunway Sitges Open 2019"]
[Site "Sitges"]
[Date "2019.12.17"]
[Round "5.7"]
[White "Narayanan, Srinath"]
[Black "Gareyev, Timur"]
[Result "1/2-1/2"]
[ECO "C47"]
[WhiteElo "2529"]
[BlackElo "2598"]
[Annotator "ChessBase"]
[PlyCount "61"]
[EventDate "2019.12.13"]
[EventType "swiss"]
[EventCountry "ESP"]
[SourceTitle "playchess.com"]
[Source "ChessBase"]
[SourceQuality "1"]
[TimeControl "40/5400+30:1800+30"]

1. e4 {[%emt 0:03:21]} e5 {[%emt 0:00:00]} 2. Nf3 {[%emt 0:00:05]} Nc6 {[%emt 0:00:04]} 3. Nc3 {[%emt 0:00:05]} Nf6 {[%emt 0:00:31]} 4. d4 {[%emt 0:00:10]} exd4 {[%emt 0:00:38]} 5. Nxd4 {[%emt 0:00:06]} Bb4 {[%emt 0:00:54]} 6. Nxc6 {[%emt 0:00:09]} bxc6 {[%emt 0:00:03]} 7. Bd3 {[%emt 0:00:07]} d5 {[%emt 0:00:05]} 8. exd5 {[%emt 0:00:05]} Qe7+ {[%emt 0:00:36]} 9. Qe2 {[%emt 0:01:17]} Qxe2+ {[%emt 0:00:29]} 10. Kxe2 {[%emt 0:00:09]} cxd5 {[%emt 0:00:49]} 11. Bg5 {[%emt 0:00:47]} c6 {[%emt 0:02:53]} 12. Rhd1 {[%emt 0:20:39]} Ng4 {[%emt 0:17:45]} 13. Bf4 {[%emt 0:00:00]} O-O {[%emt 0:07:02]} 14. Kf1 {[%emt 0:00:00]} f6 {[%emt 0:03:44]} 15. h3 {[%emt 0:20:17]} Ne5 {[%emt 0:00:56]} 16. Be2 {[%emt 0:00:05]} Ng6 {[%emt 0:19:21]} 17. Be3 {[%emt 0:03:55]} f5 {[%emt 0:01:17]} 18. Na4 {[%emt 0:04:06]} f4 {[%emt 0:01:50]} 19. Bc5 {[%emt 0:00:10]} Bxc5 {[%emt 0:10:30]} 20. Nxc5 {[%emt 0:00:03]} Nh4 {[%emt 0:00:54]} 21. f3 {[%emt 0:01:22]} Nf5 {[%emt 0:06:49]} 22. Kf2 {[%emt 0:01:31]} Ne3 {[%emt 0:00:04]} 23. Rd2 {[%emt 0:00:29]} Bf5 {[%emt 0:01:06]} 24. g4 {[%emt 0:13:28]} Bg6 {[%emt 0:01:18]} 25. Rc1 {[%emt 0:03:25]} Rfe8 {[%emt 0:05:21]} 26. Rd4 {[%emt 0:05:04]} Nxc2 {[%emt 0:03:53]} 27. Rxf4 {[%emt 0:00:06]} Rab8 {[%emt 0:00:29]} 28. b3 {[%emt 0:05:41]} Nb4 {[%emt 0:00:42]} 29. a3 {[%emt 0:05:28]} Na2 {[%emt 0:00:03]} 30. Re1 {[%emt 0:00:11]} Nc3 {[%emt 0:01:04]} 31. Ba6 {[%emt 0:01:19]} 1/2-1/2

[Event "VI Sunway Sitges Open 2019"]
[Site "Sitges"]
[Date "2019.12.17"]
[Round "5.8"]
[White "Aroshidze, Levan"]
[Black "Santos Latasa, Jaime"]
[Result "0-1"]
[ECO "B80"]
[WhiteElo "2514"]
[BlackElo "2585"]
[Annotator "ChessBase"]
[PlyCount "90"]
[EventDate "2019.12.13"]
[EventType "swiss"]
[EventCountry "ESP"]
[SourceTitle "playchess.com"]
[Source "ChessBase"]
[SourceQuality "1"]
[TimeControl "40/5400+30:1800+30"]

1. e4 {[%emt 0:02:21]} c5 {[%emt 0:00:43]} 2. Nf3 {[%emt 0:00:15]} d6 {[%emt 0:00:00]} 3. d4 {[%emt 0:00:06]} cxd4 {[%emt 0:00:00]} 4. Nxd4 {[%emt 0:00:06]} Nf6 {[%emt 0:00:00]} 5. Nc3 {[%emt 0:00:08]} a6 {[%emt 0:00:00]} 6. f3 {[%emt 0:00:08]} e6 {[%emt 0:00:00]} 7. Be3 {[%emt 0:00:10]} b5 {[%emt 0:02:38]} 8. Qd2 {[%emt 0:02:46]} Nbd7 {[%emt 0:00:00]} 9. g4 {[%emt 0:00:10]} b4 {[%emt 0:00:00]} 10. Nce2 {[%emt 0:00:27]} h6 {[%emt 0:00:52]} 11. O-O-O {[%emt 0:00:53]} Qc7 {[%emt 0:06:40]} 12. h4 {[%emt 0:08:31]} d5 {[%emt 0:00:00]} 13. Bf4 {[%emt 0:00:08]} e5 {[%emt 0:00:00]} 14. Bh2 {[%emt 0:00:06]} dxe4 {[%emt 0:00:00]} 15. g5 {[%emt 0:00:10]} hxg5 {[%emt 0:00:00]} 16. hxg5 {[%emt 0:00:06]} Rxh2 {[%emt 0:00:00]} 17. Rxh2 {[%emt 0:00:04]} exd4 {[%emt 0:00:00]} 18. Rh8 {[%emt 0:26:12]} Nd5 {[%emt 0:00:00]} 19. Qxd4 {[%emt 0:00:08]} Bb7 {[%emt 0:00:00]} 20. fxe4 {[%emt 0:14:46]} N5b6 {[%emt 0:00:00]} 21. Qxb4 {[%emt 0:00:12]} O-O-O {[%emt 0:00:00]} 22. Qd4 {[%emt 0:01:14]} Qc5 {[%emt 0:00:00]} 23. Kb1 {[%emt 0:18:06]} Qxg5 {[%emt 0:03:11]} 24. Bh3 {[%emt 0:02:58]} Kc7 {[%emt 0:01:56]} 25. Qc3+ {[%emt 0:02:11]} Bc6 {[%emt 0:05:53]} 26. Bxd7 {[%emt 0:07:12]} Rxd7 {[%emt 0:02:54]} 27. Rxd7+ {[%emt 0:05:21]} Nxd7 {[%emt 0:00:13]} 28. a3 {[%emt 0:00:01]} Qc5 {[%emt 0:02:31]} 29. Qd3 {[%emt 0:03:39]} Bb5 {[%emt 0:08:52]} 30. Qd1 {[%emt 0:00:02]} Bd6 {[%emt 0:00:55]} 31. Nc3 {[%emt 0:00:31]} Bc6 {[%emt 0:00:48]} 32. Qf1 {[%emt 0:01:07]} Be5 {[%emt 0:01:12]} 33. Rh3 {[%emt 0:00:20]} Nf6 {[%emt 0:00:40]} 34. Rf3 {[%emt 0:04:17]} Qb6 {[%emt 0:04:36]} 35. Qc4 {[%emt 0:00:43]} Kb8 {[%emt 0:01:43]} 36. Qxf7 {[%emt 0:00:46]} Nxe4 {[%emt 0:01:02]} 37. Qf8+ {[%emt 0:00:36]} Ka7 {[%emt 0:00:06]} 38. Rf7+ {[%emt 0:01:05]} Bb7 {[%emt 0:00:12]} 39. Na4 {[%emt 0:00:55]} Qd4 {[%emt 0:06:34]} 40. Qe7 {[%emt 0:00:00]} Nd6 {[%emt 0:00:00]} 41. Rf1 {[%emt 0:03:28]} g5 {[%emt 0:05:14]} 42. Nc3 {[%emt 0:06:35]} Ne4 {[%emt 0:01:53]} 43. Rf7 {[%emt 0:02:56]} Nxc3+ {[%emt 0:01:10]} 44. bxc3 {[%emt 0:00:05]} Qb6+ {[%emt 0:00:12]} 45. Kc1 {[%emt 0:03:39]} Bf4+ {[%emt 0:01:49]} 0-1

[Event "VI Sunway Sitges Open 2019"]
[Site "Sitges"]
[Date "2019.12.17"]
[Round "5.9"]
[White "Puranik, Abhimanyu"]
[Black "Song, Raymond"]
[Result "1-0"]
[ECO "B11"]
[WhiteElo "2580"]
[BlackElo "2468"]
[Annotator "ChessBase"]
[PlyCount "65"]
[EventDate "2019.12.13"]
[EventType "swiss"]
[EventCountry "ESP"]
[SourceTitle "playchess.com"]
[Source "ChessBase"]
[SourceQuality "1"]
[TimeControl "40/5400+30:1800+30"]

1. e4 {[%emt 0:00:00]} c6 {[%emt 0:00:00]} 2. Nf3 {[%emt 0:00:00]} d5 {[%emt 0:00:00]} 3. Nc3 {[%emt 0:00:00]} Bg4 {[%emt 0:00:00]} 4. h3 {[%emt 0:00:06]} Bxf3 {[%emt 0:00:00]} 5. Qxf3 {[%emt 0:00:04]} e6 {[%emt 0:00:00]} 6. Be2 {[%emt 0:00:09]} Nd7 {[%emt 0:00:04]} 7. O-O {[%emt 0:01:03]} Bc5 {[%emt 0:00:06]} 8. d3 {[%emt 0:03:55]} Ngf6 {[%emt 0:01:15]} 9. Rd1 {[%emt 0:01:35]} Bd4 {[%emt 0:02:57]} 10. Qf4 {[%emt 0:07:08]} O-O {[%emt 0:03:43]} 11. exd5 {[%emt 0:02:23]} Bxc3 {[%emt 0:04:10]} 12. bxc3 {[%emt 0:00:16]} Nxd5 {[%emt 0:00:37]} 13. Qd2 {[%emt 0:01:49]} Qf6 {[%emt 0:01:59]} 14. d4 {[%emt 0:07:31]} b5 {[%emt 0:06:36]} 15. c4 {[%emt 0:11:58]} bxc4 {[%emt 0:00:04]} 16. Bxc4 {[%emt 0:00:07]} Rfd8 {[%emt 0:01:40]} 17. Bf1 {[%emt 0:08:03]} e5 {[%emt 0:09:26]} 18. Bb2 {[%emt 0:07:19]} e4 {[%emt 0:04:59]} 19. c4 {[%emt 0:05:14]} Nf4 {[%emt 0:00:03]} 20. Qe3 {[%emt 0:11:41]} Rab8 {[%emt 0:05:58]} 21. Bc3 {[%emt 0:00:48]} Nd3 {[%emt 0:16:35]} 22. Bxd3 {[%emt 0:03:14]} exd3 {[%emt 0:00:03]} 23. Rxd3 {[%emt 0:02:24]} Nb6 {[%emt 0:08:47]} 24. d5 {[%emt 0:00:55]} Qg6 {[%emt 0:00:38]} 25. Qe2 {[%emt 0:05:44]} Re8 {[%emt 0:03:29]} 26. Qd1 {[%emt 0:00:36]} f6 {[%emt 0:07:04]} 27. dxc6 {[%emt 0:00:49]} Nxc4 {[%emt 0:01:23]} 28. c7 {[%emt 0:05:07]} Rbc8 {[%emt 0:00:15]} 29. Rd8 {[%emt 0:00:42]} Nb6 {[%emt 0:07:50]} 30. Rxc8 {[%emt 0:06:03]} Rxc8 {[%emt 0:00:02]} 31. Qd8+ {[%emt 0:00:10]} Qe8 {[%emt 0:01:37]} 32. Rd1 {[%emt 0:00:16]} Kf7 {[%emt 0:00:12]} 33. Ba5 {[%emt 0:01:09]} 1-0

[Event "VI Sunway Sitges Open 2019"]
[Site "Sitges"]
[Date "2019.12.17"]
[Round "5.10"]
[White "Gordon, Stephen J"]
[Black "Gukesh D"]
[Result "1/2-1/2"]
[ECO "E97"]
[WhiteElo "2495"]
[BlackElo "2547"]
[Annotator "ChessBase"]
[PlyCount "131"]
[EventDate "2019.12.13"]
[EventType "swiss"]
[EventCountry "ESP"]
[SourceTitle "playchess.com"]
[Source "ChessBase"]
[SourceQuality "1"]
[TimeControl "40/5400+30:1800+30"]

1. c4 {[%emt 0:02:18]} Nf6 {[%emt 0:00:10]} 2. Nc3 {[%emt 0:00:15]} g6 {[%emt 0:00:05]} 3. e4 {[%emt 0:00:32]} d6 {[%emt 0:00:18]} 4. d4 {[%emt 0:00:18]} Bg7 {[%emt 0:00:06]} 5. Nf3 {[%emt 0:00:30]} O-O {[%emt 0:00:26]} 6. Be2 {[%emt 0:00:13]} e5 {[%emt 0:01:00]} 7. O-O {[%emt 0:00:49]} Nc6 {[%emt 0:00:53]} 8. d5 {[%emt 0:00:46]} Ne7 {[%emt 0:00:21]} 9. b4 {[%emt 0:00:39]} Nh5 {[%emt 0:06:02]} 10. Re1 {[%emt 0:03:33]} f5 {[%emt 0:00:17]} 11. Ng5 {[%emt 0:00:31]} Nf6 {[%emt 0:00:28]} 12. Bf3 {[%emt 0:01:56]} Kh8 {[%emt 0:00:28]} 13. Bb2 {[%emt 0:17:01]} Ne8 {[%emt 0:03:53]} 14. Qd2 {[%emt 0:16:37]} f4 {[%emt 0:09:31]} 15. Bd1 {[%emt 0:19:27]} Bf6 {[%emt 0:17:14]} 16. Ne6 {[%emt 0:01:34]} Bxe6 {[%emt 0:00:04]} 17. dxe6 {[%emt 0:00:02]} Ng7 {[%emt 0:03:01]} 18. Nd5 {[%emt 0:02:12]} Nxe6 {[%emt 0:03:21]} 19. Nxf6 {[%emt 0:05:38]} Rxf6 {[%emt 0:00:30]} 20. Bg4 {[%emt 0:05:26]} Nd4 {[%emt 0:06:25]} 21. Bxd4 {[%emt 0:01:37]} exd4 {[%emt 0:00:08]} 22. e5 {[%emt 0:00:13]} dxe5 {[%emt 0:02:50]} 23. Rxe5 {[%emt 0:00:02]} Nc6 {[%emt 0:27:55]} 24. Rd5 {[%emt 0:00:34]} Rd6 {[%emt 0:02:18]} 25. Qxf4 {[%emt 0:01:00]} Qf8 {[%emt 0:00:13]} 26. Qd2 {[%emt 0:04:13]} Rxd5 {[%emt 0:04:51]} 27. cxd5 {[%emt 0:00:03]} Nxb4 {[%emt 0:01:39]} 28. Rb1 {[%emt 0:08:42]} a5 {[%emt 0:05:15]} 29. a3 {[%emt 0:01:35]} Nxd5 {[%emt 0:00:19]} 30. Qxd4+ {[%emt 0:00:35]} Nf6 {[%emt 0:00:08]} 31. Rxb7 {[%emt 0:01:12]} Re8 {[%emt 0:02:28]} 32. g3 {[%emt 0:04:22]} Qd6 {[%emt 0:02:00]} 33. Qxd6 {[%emt 0:01:00]} cxd6 {[%emt 0:00:02]} 34. Bf3 {[%emt 0:00:10]} Re5 {[%emt 0:01:23]} 35. Rf7 {[%emt 0:00:49]} Ne4 {[%emt 0:00:38]} 36. Rd7 {[%emt 0:00:38]} Nd2 {[%emt 0:00:24]} 37. Bc6 {[%emt 0:00:49]} Nc4 {[%emt 0:00:26]} 38. a4 {[%emt 0:00:26]} Rc5 {[%emt 0:00:30]} 39. Bb5 {[%emt 0:00:28]} d5 {[%emt 0:00:19]} 40. Kf1 {[%emt 0:00:00]} Nd2+ {[%emt 0:00:00]} 41. Ke2 {[%emt 0:08:46]} Nb3 {[%emt 0:05:23]} 42. Kd3 {[%emt 0:04:32]} Nc1+ {[%emt 0:06:30]} 43. Kd4 {[%emt 0:02:39]} Nb3+ {[%emt 0:00:06]} 44. Kd3 {[%emt 0:01:41]} Nc1+ {[%emt 0:00:55]} 45. Kd4 {[%emt 0:06:34]} Nb3+ {[%emt 0:00:49]} 46. Ke5 {[%emt 0:00:30]} d4+ {[%emt 0:00:26]} 47. Rd5 {[%emt 0:00:57]} Rc8 {[%emt 0:02:56]} 48. f4 {[%emt 0:01:49]} Kg7 {[%emt 0:08:00]} 49. Rd7+ {[%emt 0:01:09]} Kh8 {[%emt 0:00:10]} 50. g4 {[%emt 0:03:09]} Re8+ {[%emt 0:01:16]} 51. Kf6 {[%emt 0:00:54]} Rf8+ {[%emt 0:04:03]} 52. Kg5 {[%emt 0:00:32]} Nc5 {[%emt 0:00:35]} 53. Re7 {[%emt 0:00:10]} Rd8 {[%emt 0:02:32]} 54. Kh6 {[%emt 0:01:13]} Kg8 {[%emt 0:00:14]} 55. Rg7+ {[%emt 0:02:36]} Kf8 {[%emt 0:00:01]} 56. Rxh7 {[%emt 0:00:42]} d3 {[%emt 0:00:43]} 57. Rh8+ {[%emt 0:00:25]} Ke7 {[%emt 0:00:01]} 58. Rxd8 {[%emt 0:00:12]} Kxd8 {[%emt 0:00:01]} 59. f5 {[%emt 0:01:01]} d2 {[%emt 0:00:37]} 60. Be2 {[%emt 0:00:01]} gxf5 {[%emt 0:00:07]} 61. gxf5 {[%emt 0:00:01]} Nxa4 {[%emt 0:02:18]} 62. f6 {[%emt 0:00:28]} Nc5 {[%emt 0:01:02]} 63. Bd1 {[%emt 0:01:13]} a4 {[%emt 0:00:46]} 64. Bxa4 {[%emt 0:00:56]} Nxa4 {[%emt 0:00:18]} 65. f7 {[%emt 0:00:01]} d1=Q {[%emt 0:00:49]} 66. f8=Q+ {[%emt 0:00:02]} 1/2-1/2

[Event "VI Sunway Sitges Open 2019"]
[Site "Sitges"]
[Date "2019.12.17"]
[Round "5.11"]
[White "Erenberg, Ariel"]
[Black "Nasuta, Grzegorz"]
[Result "0-1"]
[ECO "A21"]
[WhiteElo "2479"]
[BlackElo "2545"]
[Annotator "ChessBase"]
[PlyCount "76"]
[EventDate "2019.12.13"]
[EventType "swiss"]
[EventCountry "ESP"]
[SourceTitle "playchess.com"]
[Source "ChessBase"]
[SourceQuality "1"]
[TimeControl "40/5400+30:1800+30"]

1. c4 {[%emt 0:00:01]} e5 {[%emt 0:06:28]} 2. g3 g6 {[%emt 0:00:08]} 3. Bg2 {[%emt 0:00:22]} Bg7 {[%emt 0:00:33]} 4. Nc3 {[%emt 0:00:27]} d6 {[%emt 0:00:12]} 5. d3 {[%emt 0:02:51]} c6 {[%emt 0:24:17]} 6. e3 {[%emt 0:22:21]} Be6 {[%emt 0:00:59]} 7. Nge2 {[%emt 0:00:36]} Ne7 {[%emt 0:07:05]} 8. O-O {[%emt 0:01:29]} O-O {[%emt 0:00:47]} 9. b3 {[%emt 0:02:00]} f5 {[%emt 0:01:30]} 10. Bb2 {[%emt 0:09:38]} Na6 {[%emt 0:02:30]} 11. Qd2 {[%emt 0:01:16]} Nc7 {[%emt 0:02:27]} 12. Rac1 {[%emt 0:09:09]} Bf7 {[%emt 0:07:28]} 13. b4 {[%emt 0:07:27]} d5 {[%emt 0:17:24]} 14. cxd5 {[%emt 0:00:11]} cxd5 {[%emt 0:00:04]} 15. Na4 {[%emt 0:02:48]} Nb5 {[%emt 0:18:15]} 16. Nc5 {[%emt 0:01:58]} b6 {[%emt 0:01:02]} 17. Nb3 {[%emt 0:00:07]} Rc8 {[%emt 0:02:54]} 18. Rxc8 {[%emt 0:00:45]} Qxc8 {[%emt 0:00:14]} 19. f4 {[%emt 0:00:41]} d4 {[%emt 0:00:04]} 20. Rc1 {[%emt 0:19:02]} Qa6 {[%emt 0:00:26]} 21. Ba1 {[%emt 0:03:46]} dxe3 {[%emt 0:01:31]} 22. Qb2 {[%emt 0:01:36]} Nd5 {[%emt 0:00:07]} 23. Bxd5 {[%emt 0:00:43]} Bxd5 {[%emt 0:00:03]} 24. fxe5 {[%emt 0:00:06]} Ba8 {[%emt 0:00:16]} 25. Nbd4 {[%emt 0:03:50]} Nxd4 {[%emt 0:02:31]} 26. Nxd4 {[%emt 0:00:01]} Qxd3 {[%emt 0:00:30]} 27. Qb3+ {[%emt 0:00:18]} Qxb3 {[%emt 0:00:05]} 28. Nxb3 {[%emt 0:00:03]} g5 {[%emt 0:01:37]} 29. Nd4 {[%emt 0:04:16]} Bd5 {[%emt 0:02:06]} 30. e6 {[%emt 0:00:30]} f4 {[%emt 0:00:15]} 31. gxf4 {[%emt 0:04:34]} gxf4 {[%emt 0:00:05]} 32. e7 {[%emt 0:01:42]} Re8 {[%emt 0:00:23]} 33. Ne2 {[%emt 0:00:15]} f3 {[%emt 0:01:17]} 34. Nf4 {[%emt 0:01:19]} Bf7 {[%emt 0:00:22]} 35. Bxg7 {[%emt 0:01:05]} Kxg7 {[%emt 0:00:01]} 36. Rc7 {[%emt 0:00:25]} Kf6 {[%emt 0:00:27]} 37. Rxa7 {[%emt 0:00:45]} Rg8+ {[%emt 0:00:52]} 38. Kh1 {[%emt 0:00:03]} f2 {[%emt 0:00:25]} 0-1